bitfinex/quotes_BTCUSD_20220111
["timestamp","ask_amount","ask_price","bid_price","bid_amount"]
[1641861494094,0.00722108,41717.0,41715.0,0.373475]
[1641861494894,0.01922108,41717.0,41715.0,0.008]
[1641861495935,0.32417226,41716.0,41715.0,0.008]
[1641861496233,0.32417226,41716.0,41707.0,0.76018693]
[1641861496234,0.83800388,41716.0,41709.0,0.60673857]
[1641861496635,0.83800388,41716.0,41707.0,0.047661]
[1641861496832,0.84900388,41716.0,41709.0,0.007]
[1641861497033,0.00066513,41715.0,41709.0,0.007]
[1641861497733,0.059962,41713.0,41709.0,0.007]
[1641861497933,0.00126526,41711.0,41709.0,0.007]
[1641861498233,0.00126526,41711.0,41707.0,0.047661]
[1641861498433,0.3771007,41710.0,41707.0,0.047661]
[1641861498636,0.4771007,41710.0,41707.0,0.047661]
[1641861499288,0.01026526,41711.0,41707.0,0.047661]
[1641861499484,0.01093035,41711.0,41707.0,0.047661]
[1641861500085,0.00193035,41711.0,41707.0,0.047661]
[1641861500286,0.3995645,41711.0,41707.0,0.047661]
[1641861500489,0.39889941,41711.0,41707.0,0.047661]
[1641861500688,0.39956456,41711.0,41707.0,0.047661]
[1641861500889,0.40756456,41711.0,41707.0,0.047661]
[1641861501089,0.059967,41710.0,41707.0,0.047661]
[1641861502394,0.0019304,41711.0,41707.0,0.047661]
[1641861502848,0.42294947,41716.0,41707.0,0.047661]
[1641861502849,0.009,41710.0,41707.0,0.047661]
[1641861503044,0.009,41710.0,41709.0,1.14225476]
[1641861503243,0.009,41710.0,41709.0,1.80265946]
[1641861503442,0.009,41710.0,41709.0,1.00265946]
[1641861503643,0.009,41710.0,41709.0,1.05265946]
[1641861504444,0.00066516,41712.0,41710.0,0.34828968]
[1641861504644,0.00066516,41712.0,41711.0,0.66068048]
[1641861505343,0.00127294,41716.0,41711.0,0.66068048]
[1641861505545,0.00066518,41714.0,41711.0,0.28720548]
[1641861506443,0.00127294,41716.0,41712.0,0.373475]
[1641861506688,0.00066518,41715.0,41712.0,0.05]
[1641861506888,0.033,41714.0,41711.0,0.33720548]
[1641861507288,0.033,41714.0,41711.0,0.05]
[1641861507488,0.033,41714.0,41708.0,0.05]
[1641861507689,0.033,41714.0,41709.0,0.276281]
[1641861507889,0.033,41714.0,41707.0,0.047661]
[1641861508189,0.00066516,41715.0,41707.0,0.047661]
[1641861508391,0.00129675,41713.0,41707.0,0.047661]
[1641861508890,1.61615425,41713.0,41707.0,0.047661]
[1641861509090,0.00066514,41712.0,41707.0,0.047661]
[1641861509692,0.37119106,41711.0,41707.0,0.047661]
[1641861510090,0.8058547,41711.0,41707.0,0.047661]
[1641861510339,0.80651983,41711.0,41707.0,0.047661]
[1641861510930,0.81451983,41711.0,41707.0,0.047661]
[1641861511331,0.8138547,41711.0,41707.0,0.047661]
[1641861511532,0.81451985,41711.0,41707.0,0.047661]
[1641861512135,0.30820192,41710.0,41707.0,0.047661]
[1641861512937,0.32120192,41710.0,41707.0,0.047661]
[1641861513134,0.48116792,41710.0,41707.0,0.047661]
[1641861513936,0.38116792,41710.0,41707.0,0.047661]
[1641861514187,0.00120037,41708.0,41707.0,0.047661]
[1641861514586,0.33389041,41708.0,41707.0,0.047661]
[1641861514787,0.34689041,41708.0,41707.0,0.047661]
[1641861514991,0.44689041,41708.0,41707.0,0.047661]
[1641861516190,0.8,41707.0,41704.0,0.0007852]
[1641861516392,0.26795385,41706.0,41704.0,0.0007852]
[1641861516589,0.26795385,41706.0,41688.0,0.60673857]
[1641861516590,2.067,41704.0,41688.0,0.60673857]
[1641861516792,0.39664069,41705.0,41688.0,0.60673857]
[1641861516793,0.00122853,41689.0,41688.0,0.60673857]
[1641861516992,0.00122853,41689.0,41686.0,0.71252593]
[1641861517191,0.00122853,41689.0,41685.0,0.60673857]
[1641861517845,0.00122853,41689.0,41682.0,0.3221011]
[1641861518035,0.00122853,41689.0,41684.0,0.51354733]
[1641861518235,0.048,41696.0,41685.0,0.373475]
[1641861518438,0.04926215,41696.0,41688.0,0.25385965]
[1641861518839,0.31583272,41695.0,41688.0,0.25385965]
[1641861520038,0.31583272,41695.0,41689.0,0.00078534]
[1641861520939,0.33483272,41695.0,41688.0,0.25385965]
[1641861521139,0.33483272,41695.0,41690.0,0.00078533]
[1641861521988,0.43483272,41695.0,41688.0,0.25385965]
[1641861522189,0.41583272,41695.0,41690.0,0.00078128]
[1641861522388,0.31583272,41695.0,41690.0,0.00078128]
[1641861522588,0.41583272,41695.0,41690.0,0.00078128]
[1641861522796,0.31583272,41695.0,41690.0,0.00078128]
[1641861522991,0.42383272,41695.0,41690.0,0.00078128]
[1641861523189,0.42383272,41695.0,41687.0,0.30604771]
[1641861523389,0.42383272,41695.0,41690.0,0.00078128]
[1641861523590,0.32383272,41695.0,41690.0,0.00078128]
[1641861524191,0.31583272,41695.0,41690.0,0.00078128]
[1641861524393,0.31583272,41695.0,41687.0,0.35604771]
[1641861524594,0.04926215,41696.0,41690.0,0.00078128]
[1641861524993,0.009,41695.0,41690.0,0.00078128]
[1641861525637,0.009,41695.0,41687.0,0.05]
[1641861525839,0.009,41695.0,41690.0,0.00078258]
[1641861526238,0.30497901,41695.0,41690.0,0.00078258]
[1641861526840,0.16747912,41690.0,41686.0,0.26677329]
[1641861527040,0.16747912,41690.0,41686.0,0.31677329]
[1641861527242,0.72718966,41689.0,41684.0,0.4666781]
[1641861527440,0.42181916,41689.0,41684.0,0.4666781]
[1641861528144,0.16747912,41690.0,41685.0,0.29887871]
[1641861528342,0.16747912,41690.0,41686.0,0.373475]
[1641861528740,0.16747912,41690.0,41686.0,0.423475]
[1641861528940,0.17247912,41690.0,41686.0,0.423475]
[1641861529386,0.17247912,41690.0,41686.0,0.4242572]
[1641861529987,0.16747912,41690.0,41686.0,0.4242572]
[1641861530794,0.16747912,41690.0,41686.0,0.54420666]
[1641861530992,0.17347912,41690.0,41686.0,0.54420666]
[1641861531194,0.17347912,41690.0,41686.0,0.4242572]
[1641861531594,0.17347912,41690.0,41686.0,0.423475]
[1641861531795,0.17347912,41690.0,41686.0,0.4242572]
[1641861532194,0.16747912,41690.0,41686.0,0.4242572]
[1641861532843,0.17147912,41690.0,41686.0,0.423475]
[1641861533034,0.17147912,41690.0,41686.0,0.42425735]
[1641861534036,0.17147912,41690.0,41686.0,0.423475]
[1641861534236,0.16747912,41690.0,41686.0,0.42425735]
[1641861534837,0.17347912,41690.0,41686.0,0.42425735]
[1641861535238,0.17347912,41690.0,41684.0,0.46354733]
[1641861535438,0.17347912,41690.0,41686.0,0.00078235]
[1641861535439,0.00125852,41689.0,41686.0,0.00078235]
[1641861536339,0.32143825,41687.0,41686.0,0.00078235]
[1641861536588,0.32143825,41687.0,41685.0,0.00078231]
[1641861536990,0.33043825,41687.0,41685.0,0.00078231]
[1641861537592,0.009,41687.0,41684.0,0.80560021]
[1641861537890,0.009,41687.0,41684.0,0.80638253]
[1641861538088,0.00125852,41689.0,41684.0,0.46432965]
[1641861538290,0.31843119,41689.0,41684.0,0.46432965]
[1641861538493,0.32342829,41689.0,41684.0,0.46432965]
[1641861538691,0.00129,41685.0,41684.0,0.46432965]
[1641861538891,0.00129,41685.0,41684.0,0.46354733]
[1641861539190,0.00129,41685.0,41684.0,0.46432965]
[1641861539389,0.43267265,41685.0,41684.0,0.46262028]
[1641861539593,0.53267265,41685.0,41684.0,0.46262028]
[1641861539789,0.59267965,41685.0,41684.0,0.46262028]
[1641861539988,0.59267965,41685.0,41684.0,0.46183796]
[1641861540436,0.92040882,41685.0,41684.0,0.46183796]
[1641861540638,0.96840882,41685.0,41684.0,0.46183796]
[1641861541038,0.97940882,41685.0,41684.0,0.46183796]
[1641861541235,0.54802617,41685.0,41684.0,0.46183796]
[1641861541435,0.48801917,41685.0,41684.0,0.46183796]
[1641861542033,0.72237564,41685.0,41684.0,0.46183796]
[1641861542235,0.47701917,41685.0,41684.0,0.46183796]
[1641861542934,0.47701917,41685.0,41684.0,0.03699285]
[1641861542935,1.00724219,41685.0,41684.0,0.03699285]
[1641861543538,0.95724219,41685.0,41684.0,0.03699285]
[1641861544083,0.94624219,41685.0,41684.0,0.03699285]
[1641861544889,0.95824219,41685.0,41684.0,0.03699285]
[1641861545088,0.85824219,41685.0,41684.0,0.03699285]
[1641861545489,0.48901917,41685.0,41684.0,0.03699285]
[1641861545689,0.06,41685.0,41684.0,0.03699285]
[1641861545889,0.012,41685.0,41684.0,0.03699285]
[1641861546290,0.74029836,41688.0,41684.0,0.03699285]
[1641861546990,0.29829836,41688.0,41684.0,0.03699285]
[1641861547391,0.35829536,41688.0,41684.0,0.03777519]
[1641861548234,0.24029836,41688.0,41684.0,0.03777519]
[1641861548435,0.24029836,41688.0,41684.0,0.03699285]
[1641861548636,0.24029836,41688.0,41684.0,0.03777519]
[1641861549034,0.27829836,41688.0,41684.0,0.03777519]
[1641861549233,0.27829836,41688.0,41685.0,0.2795826]
[1641861549434,0.27829836,41688.0,41684.0,0.03777519]
[1641861549636,0.27829836,41688.0,41684.0,0.03699285]
[1641861549834,0.27829836,41688.0,41684.0,0.03777519]
[1641861550836,0.24029836,41688.0,41684.0,0.03699285]
[1641861551034,0.31229836,41688.0,41684.0,0.03777519]
[1641861552090,0.31229836,41688.0,41684.0,0.03699285]
[1641861552289,0.24029836,41688.0,41684.0,0.03777519]
[1641861552991,0.31129836,41688.0,41684.0,0.03777519]
[1641861553190,0.00152557,41687.0,41684.0,0.03699285]
[1641861553390,0.00152557,41687.0,41684.0,0.03777519]
[1641861554391,0.00152557,41687.0,41684.0,0.03699285]
[1641861554990,0.06852557,41687.0,41684.0,0.03699285]
[1641861556233,0.00152557,41687.0,41684.0,0.03699285]
[1641861557033,0.06452557,41687.0,41684.0,0.03699285]
[1641861557237,0.31101697,41686.0,41684.0,0.03699285]
[1641861557434,0.06452557,41687.0,41684.0,0.03699285]
[1641861557736,0.800476,41685.0,41684.0,0.03699285]
[1641861557935,0.72736368,41685.0,41684.0,0.03699285]
[1641861558135,0.82736368,41685.0,41684.0,0.03699285]
[1641861558335,0.32688768,41685.0,41684.0,0.03699285]
[1641861558534,0.00152331,41686.0,41684.0,0.03699285]
[1641861558937,0.012,41685.0,41684.0,0.03699285]
[1641861560190,0.00152331,41686.0,41684.0,0.03699285]
[1641861560990,0.04752331,41686.0,41684.0,0.03799285]
[1641861561391,0.30481064,41685.0,41684.0,0.03799285]
[1641861562293,0.30481064,41685.0,41684.0,0.03699285]
[1641861563142,0.33833201,41685.0,41684.0,0.03799285]
[1641861563739,0.03352137,41685.0,41684.0,0.03799285]
[1641861564339,0.00152137,41685.0,41684.0,0.03699285]
[1641861564939,0.01352137,41685.0,41684.0,0.03799285]
[1641861566239,0.00152137,41685.0,41684.0,0.03699285]
[1641861567089,0.01452137,41685.0,41684.0,0.03699285]
[1641861568291,0.00152137,41685.0,41684.0,0.03699285]
[1641861568991,0.01552137,41685.0,41684.0,0.03699285]
[1641861570340,0.00152137,41685.0,41684.0,0.03699285]
[1641861571038,0.01552137,41685.0,41684.0,0.03699285]
[1641861572340,0.00152137,41685.0,41684.0,0.03699285]
[1641861573140,0.015,41685.0,41684.0,0.03699285]
[1641861574389,0.00283006,41687.0,41684.0,0.03699285]
[1641861574586,0.00154085,41687.0,41684.0,0.03699285]
[1641861574986,0.03654085,41687.0,41684.0,0.03699285]
[1641861576389,0.00154085,41687.0,41684.0,0.03699285]
[1641861576991,0.06454085,41687.0,41684.0,0.03699285]
[1641861578236,0.00157138,41686.0,41684.0,0.03699285]
[1641861578437,0.00157138,41686.0,41685.0,1.223475]
[1641861578637,0.00157138,41686.0,41685.0,0.423475]
[1641861578837,0.00157138,41686.0,41685.0,0.373475]
[1641861579040,0.04357138,41686.0,41685.0,0.429475]
[1641861580241,0.00157138,41686.0,41685.0,0.423475]
[1641861580843,0.00157138,41686.0,41685.0,0.471475]
[1641861581043,0.01857138,41686.0,41685.0,0.476475]
[1641861582297,0.01857138,41686.0,41685.0,0.471475]
[1641861582497,0.00157138,41686.0,41685.0,0.471475]
[1641861583100,0.01357138,41686.0,41685.0,0.479475]
[1641861583297,0.012,41686.0,41685.0,0.479475]
[1641861584299,0.16894045,41690.0,41685.0,0.471475]
[1641861584498,0.16894045,41690.0,41685.0,0.048]
[1641861585098,0.18294045,41690.0,41685.0,0.055]
[1641861585343,0.18294045,41690.0,41687.0,0.29203359]
[1641861585537,0.18294045,41690.0,41685.0,0.007]
[1641861585736,0.30258558,41689.0,41685.0,0.007]
[1641861585937,0.01657,41689.0,41686.0,0.00076371]
[1641861586339,0.32109325,41689.0,41686.0,0.00076371]
[1641861586938,0.32109325,41689.0,41684.0,0.03699285]
[1641861587137,0.32109325,41689.0,41686.0,0.005]
[1641861587138,0.02857,41689.0,41686.0,0.005]
[1641861588140,0.00146425,41688.0,41686.0,0.005]
[1641861588539,0.00146425,41688.0,41685.0,0.00078824]
[1641861588944,0.01657,41687.0,41685.0,0.00078824]
[1641861589189,0.01657,41687.0,41685.0,0.00678824]
[1641861589388,0.01657,41687.0,41685.0,0.006]
[1641861590390,0.01657,41687.0,41684.0,0.03699285]
[1641861590591,0.01657,41687.0,41684.0,0.0377811]
[1641861591193,0.02857,41687.0,41684.0,0.0437811]
[1641861591595,0.02857,41687.0,41684.0,0.04299285]
[1641861592393,0.02857,41687.0,41684.0,0.03699285]
[1641861592394,0.01657,41687.0,41684.0,0.03699285]
[1641861593038,0.03057,41687.0,41684.0,0.04299285]
[1641861593339,0.00146133,41686.0,41685.0,1.348]
[1641861593538,0.00146133,41686.0,41685.0,2.22423237]
[1641861593739,0.01803133,41686.0,41685.0,2.32423237]
[1641861593940,0.01803133,41686.0,41685.0,2.3311489]
[1641861594339,0.01803133,41686.0,41685.0,2.7511489]
[1641861594740,0.16747912,41690.0,41685.0,2.7511489]
[1641861594741,0.16747912,41690.0,41686.0,0.39343996]
[1641861594939,0.16747912,41690.0,41688.0,0.1199348]
[1641861595138,0.16747912,41690.0,41689.0,1.471475]
[1641861595342,0.16747912,41690.0,41689.0,0.521475]
[1641861596239,0.16747912,41690.0,41689.0,0.58144233]
[1641861596891,0.16747912,41690.0,41689.0,0.88144233]
[1641861597092,0.00722534,41695.0,41689.0,0.89244233]
[1641861597291,0.00722534,41695.0,41692.0,0.059964]
[1641861597491,0.00722534,41695.0,41693.0,0.54140122]
[1641861597692,0.00722534,41695.0,41694.0,1.30788077]
[1641861597900,0.00722534,41695.0,41694.0,0.73135577]
[1641861598394,0.00722534,41695.0,41694.0,1.18141646]
[1641861599194,0.00722534,41695.0,41694.0,1.19041646]
[1641861599195,0.03922534,41695.0,41694.0,1.19041646]
[1641861599994,0.03922534,41695.0,41694.0,1.48732749]
[1641861600445,0.00722534,41695.0,41694.0,1.47832749]
[1641861600642,0.00722534,41695.0,41694.0,1.52832749]
[1641861600939,0.00722534,41695.0,41694.0,1.57632749]
[1641861601138,0.00722534,41695.0,41694.0,1.58732749]
[1641861601739,0.00722534,41695.0,41694.0,1.29041646]
[1641861602443,0.00722534,41695.0,41694.0,1.27941646]
[1641861602643,0.00722534,41695.0,41694.0,0.97153569]
[1641861603241,0.00722534,41695.0,41694.0,0.98353569]
[1641861603242,0.00851712,41695.0,41694.0,0.98353569]
[1641861604298,0.00851712,41695.0,41694.0,0.97153569]
[1641861604498,0.00851712,41695.0,41694.0,1.39153569]
[1641861605297,0.00851712,41695.0,41694.0,0.953475]
[1641861606399,0.00851712,41695.0,41694.0,0.941475]
[1641861606599,0.00851712,41695.0,41694.0,0.891475]
[1641861607298,0.00851712,41695.0,41694.0,0.900475]
[1641861607299,0.01951712,41695.0,41694.0,0.900475]
[1641861608153,0.01989649,41695.0,41694.0,1.19686439]
[1641861608554,0.60007244,41695.0,41694.0,0.468]
[1641861608757,0.91468245,41695.0,41686.0,0.00312934]
[1641861608956,0.00120742,41687.0,41686.0,0.00312934]
[1641861609154,0.05237742,41687.0,41686.0,0.00312934]
[1641861609755,0.35998265,41687.0,41684.0,0.03699285]
[1641861609957,0.0012391,41685.0,41684.0,0.03699285]
[1641861610760,0.0492391,41685.0,41684.0,0.03699285]
[1641861611158,0.74602189,41685.0,41684.0,0.03699285]
[1641861611789,0.69802189,41685.0,41684.0,0.03699285]
[1641861611990,0.79802189,41685.0,41684.0,0.03699285]
[1641861612390,0.78602189,41685.0,41684.0,0.03699285]
[1641861613189,0.8912991,41685.0,41684.0,0.03699285]
[1641861613593,0.8912991,41685.0,41682.0,0.0007909]
[1641861613594,0.9836591,41685.0,41682.0,0.0007909]
[1641861613792,0.87341,41683.0,41682.0,0.0007909]
[1641861613991,0.76954004,41683.0,41682.0,0.0007909]
[1641861614189,0.86954004,41683.0,41682.0,0.0007909]
[1641861614589,0.86954004,41683.0,41680.0,0.0022]
[1641861614790,0.86954004,41683.0,41680.0,0.00299095]
[1641861615345,0.90054004,41683.0,41680.0,0.00499095]
[1641861615542,0.32709374,41682.0,41680.0,0.00499095]
[1641861615742,0.4,41680.0,41678.0,0.001]
[1641861615941,0.4,41680.0,41674.0,0.0007]
[1641861615942,0.37341,41676.0,41674.0,0.0007]
[1641861616146,1.081432,41675.0,41674.0,0.0007]
[1641861616342,0.481432,41675.0,41674.0,0.0007]
[1641861616542,0.581432,41675.0,41674.0,0.0007]
[1641861616742,0.90210281,41675.0,41674.0,0.0007]
[1641861617143,0.91410281,41675.0,41674.0,0.0007]
[1641861617943,1.26371085,41675.0,41671.0,0.00189118]
[1641861618144,0.00129442,41673.0,41671.0,0.00189118]
[1641861618342,0.42141,41672.0,41671.0,0.00189118]
[1641861618542,0.85085648,41672.0,41671.0,0.00189118]
[1641861619194,0.85085648,41672.0,41669.0,0.0021]
[1641861619195,0.37341,41670.0,41669.0,0.0021]
[1641861619394,0.77220996,41670.0,41669.0,0.0021]
[1641861619594,0.87220996,41670.0,41669.0,0.0021]
[1641861621194,0.92620996,41670.0,41669.0,0.0021]
[1641861622394,0.87220996,41670.0,41669.0,0.0021]
[1641861623244,0.92483913,41670.0,41669.0,0.0021]
[1641861623444,0.5753249,41670.0,41669.0,0.0021]
[1641861623846,0.57466533,41670.0,41669.0,0.0021]
[1641861624649,0.52266533,41670.0,41669.0,0.0021]
[1641861625345,0.58266533,41670.0,41669.0,0.0021]
[1641861626598,0.52266533,41670.0,41669.0,0.0021]
[1641861626797,0.68028199,41670.0,41669.0,0.0021]
[1641861627197,0.69428199,41670.0,41669.0,0.0021]
[1641861627599,0.45,41669.0,41667.0,0.0011]
[1641861627802,0.6886587,41668.0,41667.0,0.00188376]
[1641861628000,0.8366587,41668.0,41667.0,0.00188376]
[1641861628799,1.24520279,41668.0,41667.0,0.0011]
[1641861629400,1.25720279,41668.0,41667.0,0.0021]
[1641861630202,0.5446206,41667.0,41665.0,0.00551158]
[1641861630444,0.74641712,41666.0,41665.0,0.00551158]
[1641861630645,0.52141,41666.0,41665.0,0.00551158]
[1641861631343,0.53241,41666.0,41665.0,0.00672777]
[1641861631644,0.43241,41666.0,41665.0,0.00672777]
[1641861631845,0.38441,41666.0,41665.0,0.00672777]
[1641861632044,0.011,41666.0,41665.0,0.00672777]
[1641861632445,0.15925878,41670.0,41665.0,0.85066474]
[1641861632846,0.15925878,41670.0,41665.0,0.40066474]
[1641861633247,0.00163751,41666.0,41665.0,0.40366474]
[1641861633849,0.00163751,41666.0,41665.0,0.45366474]
[1641861634493,0.00163751,41666.0,41665.0,0.45066474]
[1641861635293,0.00163751,41666.0,41665.0,0.45466474]
[1641861635498,0.00163751,41666.0,41665.0,1.57825274]
[1641861636395,0.00163751,41666.0,41665.0,1.56425274]
[1641861636596,0.00163751,41666.0,41665.0,1.62425374]
[1641861636794,0.00163751,41666.0,41665.0,1.56425274]
[1641861636999,0.00163751,41666.0,41665.0,0.81425274]
[1641861637196,0.00163751,41666.0,41665.0,0.82225274]
[1641861637396,0.00059935,41666.0,41665.0,0.82225274]
[1641861638043,0.00059935,41666.0,41665.0,0.44866474]
[1641861638242,0.00059935,41666.0,41665.0,0.82225274]
[1641861638443,0.15915035,41670.0,41665.0,0.77425274]
[1641861638644,0.15915035,41670.0,41665.0,0.40066474]
[1641861639244,0.15915035,41670.0,41665.0,0.40666474]
[1641861639446,0.15915035,41670.0,41669.0,0.31214323]
[1641861640046,0.15915035,41670.0,41669.0,0.36214323]
[1641861640245,0.15915035,41670.0,41669.0,0.05]
[1641861640445,0.15915035,41670.0,41665.0,0.40744855]
[1641861640446,0.15915035,41670.0,41665.0,0.45744855]
[1641861640647,0.15915035,41670.0,41666.0,0.373588]
[1641861640846,0.15915035,41670.0,41665.0,0.45066474]
[1641861641045,0.15915035,41670.0,41666.0,0.120005]
[1641861641247,0.15915035,41670.0,41666.0,0.126005]
[1641861642297,0.15915035,41670.0,41666.0,0.1267888]
[1641861642496,0.15915035,41670.0,41666.0,0.1207888]
[1641861642696,0.15915035,41670.0,41667.0,0.373588]
[1641861642895,0.15915035,41670.0,41667.0,0.423588]
[1641861643095,0.00149838,41669.0,41667.0,0.05]
[1641861643295,0.00149838,41669.0,41667.0,0.055]
[1641861643595,0.00149838,41669.0,41667.0,0.005]
[1641861643795,0.00149838,41669.0,41668.0,0.373588]
[1641861643995,0.00149838,41669.0,41668.0,0.423588]
[1641861644196,0.00149838,41669.0,41668.0,0.05]
[1641861644395,0.00149838,41669.0,41666.0,0.00078379]
[1641861644595,0.00149838,41669.0,41667.0,0.373588]
[1641861644799,0.00149838,41669.0,41666.0,0.00078379]
[1641861645444,0.00149838,41669.0,41666.0,0.00678379]
[1641861645645,0.00149838,41669.0,41666.0,0.006]
[1641861646643,0.00149838,41669.0,41665.0,0.77360799]
[1641861646644,0.00149838,41669.0,41665.0,0.05551158]
[1641861646843,0.00149838,41669.0,41665.0,0.05472777]
[1641861647046,0.00149838,41669.0,41665.0,0.00551158]
[1641861647244,0.00149838,41669.0,41665.0,0.01151158]
[1641861647846,0.3003902,41669.0,41665.0,0.01151158]
[1641861648145,0.00149644,41668.0,41665.0,0.01072777]
[1641861648345,0.00149644,41668.0,41665.0,0.0115116]
[1641861648549,0.00149644,41668.0,41665.0,0.0055116]
[1641861649391,0.00149644,41668.0,41665.0,0.00972777]
[1641861650691,0.00149644,41668.0,41665.0,0.00472777]
[1641861651391,0.00149644,41668.0,41665.0,0.00872777]
[1641861652491,0.00149644,41668.0,41666.0,0.26590983]
[1641861652697,0.00149644,41668.0,41666.0,0.33203605]
[1641861652956,0.00149644,41668.0,41667.0,2.02388297]
[1641861653152,0.00872556,41673.0,41667.0,2.02388297]
[1641861653353,0.00872556,41673.0,41670.0,0.059995]
[1641861653551,0.00872556,41673.0,41670.0,0.17998445]
[1641861653851,0.00872556,41673.0,41671.0,0.77342781]
[1641861654752,0.00872556,41673.0,41671.0,0.423588]
[1641861655355,0.00872556,41673.0,41671.0,0.432588]
[1641861656703,0.24467143,41672.0,41670.0,0.00078369]
[1641861657303,0.24467143,41672.0,41670.0,0.00478369]
[1641861657704,0.2445054,41672.0,41670.0,0.004]
[1641861658107,0.00150227,41671.0,41670.0,0.004]
[1641861658505,0.00150227,41671.0,41669.0,0.00078371]
[1641861658906,0.00150227,41671.0,41667.0,0.23858836]
[1641861659106,0.00150227,41671.0,41668.0,0.00078374]
[1641861659311,0.00150227,41671.0,41669.0,0.005]
[1641861660546,0.00150227,41671.0,41668.0,0.00078374]
[1641861661343,0.00150227,41671.0,41668.0,0.006]
[1641861662646,0.00150227,41671.0,41668.0,0.060005]
[1641861662846,0.00150227,41671.0,41669.0,0.373588]
[1641861663049,0.00150227,41671.0,41669.0,0.423588]
[1641861663246,0.0087314,41673.0,41669.0,0.430588]
[1641861663445,0.0087314,41673.0,41669.0,0.057]
[1641861663648,0.0087314,41673.0,41669.0,0.007]
[1641861663846,0.0087314,41673.0,41669.0,0.00778371]
[1641861664697,0.0087314,41673.0,41669.0,0.00078371]
[1641861664898,0.0087314,41673.0,41668.0,0.060005]
[1641861665102,0.0087314,41673.0,41671.0,0.31682693]
[1641861665298,0.0087314,41673.0,41671.0,0.38565693]
[1641861665501,0.0087314,41673.0,41672.0,1.373588]
[1641861665701,0.0087314,41673.0,41672.0,0.423588]
[1641861666097,0.0087314,41673.0,41672.0,0.723588]
[1641861666501,0.00150033,41673.0,41672.0,0.723588]
[1641861666902,1.2,41678.0,41675.0,0.059984]
[1641861667202,1.2,41678.0,41676.0,0.53357293]
[1641861667400,1.2,41678.0,41676.0,0.59355793]
[1641861667600,1.2,41678.0,41676.0,0.65354293]
[1641861667854,1.2,41678.0,41677.0,0.47407195]
[1641861668044,1.2,41678.0,41677.0,0.89765995]
[1641861669446,1.2,41678.0,41677.0,0.90865995]
[1641861670246,1.2,41678.0,41677.0,0.434588]
[1641861670446,1.2,41678.0,41677.0,0.061]
[1641861670648,1.2,41678.0,41675.0,0.157984]
[1641861671246,1.2,41678.0,41675.0,1.09201127]
[1641861671447,1.2,41678.0,41676.0,0.373588]
[1641861673396,1.2,41678.0,41676.0,0.39031402]
[1641861673594,1.2,41678.0,41676.0,0.384588]
[1641861673993,3.47165345,41678.0,41676.0,0.384588]
[1641861674193,3.47165345,41678.0,41676.0,0.011]
[1641861674394,1.2,41678.0,41676.0,0.011]
[1641861674594,1.2,41678.0,41675.0,0.62447263]
[1641861675194,1.2,41678.0,41675.0,0.57447263]
[1641861675449,1.2,41678.0,41675.0,0.64346448]
[1641861675649,1.2,41678.0,41675.0,0.69346448]
[1641861676052,1.2,41678.0,41675.0,0.64346448]
[1641861676249,1.2,41678.0,41676.0,0.373588]
[1641861676448,0.27483955,41677.0,41675.0,0.107]
[1641861676649,0.27483955,41677.0,41675.0,0.098]
[1641861676848,0.27483955,41677.0,41675.0,0.05]
[1641861677052,0.27483955,41677.0,41674.0,0.05]
[1641861677053,0.29760924,41676.0,41674.0,0.05]
[1641861677250,0.29760924,41676.0,41671.0,0.05]
[1641861677452,0.27483955,41677.0,41675.0,0.004]
[1641861678051,0.37341,41676.0,41675.0,0.004]
[1641861679195,0.37341,41676.0,41670.0,0.00078365]
[1641861679496,0.27483955,41677.0,41675.0,0.006]
[1641861679698,0.37341,41676.0,41675.0,0.006]
[1641861680697,0.81191421,41676.0,41675.0,0.006]
[1641861681101,1.10774144,41676.0,41675.0,0.006]
[1641861681298,1.11036594,41676.0,41675.0,0.006]
[1641861682399,1.21036594,41676.0,41675.0,0.006]
[1641861682598,1.21036594,41676.0,41670.0,0.00078365]
[1641861682862,1.21036594,41676.0,41665.0,0.26486203]
[1641861683051,0.23729581,41668.0,41665.0,0.31486203]
[1641861683251,0.23729581,41668.0,41665.0,0.05472777]
[1641861683451,0.23729581,41668.0,41665.0,0.06172777]
[1641861683657,0.23729581,41668.0,41665.0,0.01172777]
[1641861684553,0.07158151,41667.0,41665.0,0.00472777]
[1641861684952,0.87341,41666.0,41665.0,0.00472777]
[1641861685152,0.00123383,41664.0,41663.0,0.03084777]
[1641861685352,0.56510683,41664.0,41663.0,0.03084777]
[1641861685553,1.13724214,41664.0,41663.0,0.03163164]
[1641861685755,1.07720914,41664.0,41663.0,0.03163164]
[1641861686601,1.47247702,41664.0,41663.0,0.03084777]
[1641861687103,1.71763999,41664.0,41663.0,0.03084777]
[1641861687304,1.38240511,41664.0,41663.0,0.03084777]
[1641861687502,1.39140511,41664.0,41663.0,0.03084777]
[1641861688203,0.61407383,41664.0,41663.0,0.03084777]
[1641861688603,0.60507383,41664.0,41663.0,0.03084777]
[1641861689407,0.62107383,41664.0,41663.0,0.03084777]
[1641861689607,0.52107383,41664.0,41663.0,0.03084777]
[1641861690210,0.8486302,41664.0,41663.0,0.03084777]
[1641861690451,0.52107383,41664.0,41663.0,0.03084777]
[1641861690652,0.81801896,41664.0,41663.0,0.03084777]
[1641861690850,0.0752811,41664.0,41663.0,0.03084777]
[1641861691047,0.108033,41664.0,41663.0,0.03084777]
[1641861691456,0.123033,41664.0,41663.0,0.03084777]
[1641861691650,0.063,41664.0,41663.0,0.03084777]
[1641861692653,0.015,41664.0,41663.0,0.03084777]
[1641861693353,0.015,41664.0,41663.0,0.03184777]
[1641861693552,0.00085964,41672.0,41663.0,0.49315022]
[1641861693752,0.26457006,41673.0,41666.0,0.25246264]
[1641861693958,0.00085964,41672.0,41663.0,0.08184777]
[1641861694597,0.00085964,41672.0,41663.0,0.08084777]
[1641861695000,0.26457006,41673.0,41664.0,0.42491601]
[1641861695197,0.00085968,41672.0,41664.0,0.42491601]
[1641861695598,0.06088068,41672.0,41664.0,0.42491601]
[1641861695800,0.29725928,41666.0,41664.0,0.42491601]
[1641861696605,0.67305686,41665.0,41664.0,0.42491601]
[1641861697002,0.77305686,41665.0,41664.0,0.42491601]
[1641861697501,0.84809186,41665.0,41664.0,0.42491601]
[1641861698549,0.41488826,41665.0,41664.0,0.42491601]
[1641861698750,0.39988826,41665.0,41664.0,0.42491601]
[1641861698948,0.29725928,41666.0,41664.0,0.42491601]
[1641861699153,0.1,41665.0,41664.0,0.41991601]
[1641861699351,0.00121105,41667.0,41664.0,0.41991601]
[1641861699352,0.06,41666.0,41664.0,0.41991601]
[1641861700753,0.00121105,41667.0,41664.0,0.41991601]